fUSD/lending_fUSD_20240719
["ID","MTS","AMOUNT","RATE_DAILY","PERIOD"]
[332677478,1721425845033,-399.85516856,0.00034246,14]
[332677479,1721425845310,-237.0,0.00031,5]
[332677480,1721425845320,-226.17711551,0.00031863,2]
[332677483,1721425848998,-152.13961577,0.00030999,2]
[332677484,1721425849009,-605.91288449,0.00031863,2]
[332677485,1721425849019,-419.88,0.00031863,2]
[332677486,1721425849029,-264.29,0.0003369,10]
[332677487,1721425849040,-100.14483144,0.00034246,14]
[332677488,1721425849051,-500.0,0.00034246,14]
[332677489,1721425849061,-500.0,0.00034246,14]
[332677490,1721425849071,-500.0,0.00034246,14]
[332677491,1721425849082,-500.0,0.00034246,14]
[332677492,1721425849092,-500.0,0.00034246,14]
[332677493,1721425849103,-500.0,0.00034246,14]
[332677494,1721425849113,-510.4,0.00034246,14]
[332677495,1721425849124,-500.0,0.00034246,14]
[332677496,1721425849135,-152.183215,0.00034246,7]
[332677497,1721425849146,-152.579794,0.00034246,7]
[332677498,1721425849156,-500.0,0.00034246,14]
[332677499,1721425849166,-500.0,0.00034246,14]
[332677500,1721425849176,-500.0,0.00034246,14]
[332677501,1721425849186,-151.0,0.00034246,7]
[332677502,1721425849197,-151.0,0.00034246,7]
[332677503,1721425849208,-568.43,0.00034246,14]
[332677504,1721425849219,-200.94742931,0.00034246,14]
[332677505,1721425849229,-500.0,0.00034246,14]
[332677506,1721425849240,-972.68,0.00034246,14]
[332677507,1721425849251,-663.37,0.00034246,14]
[332677508,1721425849263,-1145.89,0.00034246,14]
[332677509,1721425849274,-500.0,0.00034246,14]
[332677510,1721425849286,-500.0,0.00034246,14]
[332677511,1721425849297,-500.0,0.00034246,14]
[332677512,1721425849308,-256.92789726,0.00034246,14]
[332677513,1721425849324,-243.07210274,0.00034246,14]
[332677514,1721425849334,-500.0,0.00034246,14]
[332677515,1721425849345,-1084.99,0.00034246,14]
[332677516,1721425849356,-500.0,0.00034246,14]
[332677517,1721425849367,-500.0,0.00034246,14]
[332677518,1721425849379,-500.0,0.00034246,14]
[332677519,1721425849390,-153.056722,0.00034246,7]
[332677520,1721425849400,-1000.0,0.00034246,7]
[332677521,1721425849410,-500.0,0.00034246,14]
[332677522,1721425849421,-500.0,0.00034246,14]
[332677523,1721425849432,-500.0,0.00034246,14]
[332677524,1721425849443,-500.0,0.00034246,14]
[332677525,1721425849455,-500.0,0.00034246,14]
[332677526,1721425849467,-500.0,0.00034246,14]
[332677527,1721425849478,-665.95,0.00034246,14]
[332677528,1721425849490,-118.37635422,0.00034246,14]
[332677529,1721425849504,-381.62364578,0.00034246,14]
[332677530,1721425849515,-342.67955693,0.00034246,14]
[332677531,1721425849529,-157.32044307,0.00034246,14]
[332677532,1721425849540,-788.27,0.00034246,14]
[332677533,1721425849550,-582.98,0.00034246,14]
[332677534,1721425849560,-985.74,0.00034246,14]
[332677535,1721425849570,-512.81,0.00034246,14]
[332677536,1721425849582,-500.0,0.00034246,14]
[332677537,1721425849592,-500.0,0.00034246,14]
[332677538,1721425849602,-702.27,0.00034246,14]
[332677539,1721425849612,-500.0,0.00034246,14]
[332677540,1721425849622,-500.0,0.00034246,14]
[332677541,1721425849632,-500.0,0.00034246,14]
[332677542,1721425849642,-500.0,0.00034246,14]
[332677543,1721425849656,-758.63,0.00034246,14]
[332677544,1721425849665,-500.0,0.00034246,14]
[332677545,1721425849675,-663.65,0.00034246,14]
[332677546,1721425849686,-500.0,0.00034246,14]
[332677547,1721425849696,-500.0,0.00034246,14]
[332677548,1721425849706,-151.0,0.00034246,7]
[332677549,1721425849716,-278.132203,0.00034246,7]
[332677550,1721425849726,-500.0,0.00034246,14]
[332677551,1721425849736,-500.0,0.00034246,14]
[332677552,1721425849747,-200.769365,0.00034246,7]
[332677553,1721425849757,-500.0,0.00034246,14]
[332677554,1721425849768,-500.0,0.00034246,14]
[332677555,1721425849778,-263.95992889,0.00034246,14]
[332677556,1721425849792,-236.04007111,0.00034246,14]
[332677557,1721425849802,-500.0,0.00034246,7]
[332677558,1721425849812,-511.48,0.00034246,14]
[332677559,1721425849822,-500.0,0.00034246,14]
[332677560,1721425849832,-500.0,0.00034246,14]
[332677561,1721425849842,-517.63,0.00034246,14]
[332677562,1721425849852,-1758.63,0.00034246,14]
[332677563,1721425849862,-500.0,0.00034246,14]
[332677564,1721425849872,-526.05,0.00034246,14]
[332677565,1721425849881,-500.0,0.00034246,14]
[332677566,1721425849891,-500.0,0.00034246,14]
[332677567,1721425849901,-500.0,0.00034246,14]
[332677568,1721425849911,-1157.94,0.00034246,14]
[332677569,1721425849921,-1750.02,0.00034246,14]
[332677570,1721425849931,-500.0,0.00034246,14]
[332677571,1721425849940,-500.0,0.00034246,14]
[332677572,1721425849950,-500.0,0.00034246,14]
[332677573,1721425849961,-500.0,0.00034246,14]
[332677574,1721425849971,-592.49,0.00034246,14]
[332677575,1721425849981,-1168.01,0.00034246,14]
[332677576,1721425849991,-590.75,0.00034246,14]
[332677577,1721425850000,-500.0,0.00034246,14]
[332677578,1721425850010,-500.0,0.00034246,14]
[332677579,1721425850019,-500.0,0.00034246,14]
[332677580,1721425850029,-500.0,0.00034246,14]
[332677581,1721425850039,-582.25,0.00034246,14]
[332677582,1721425850048,-708.42,0.00034246,14]
[332677583,1721425850058,-868.88,0.00034246,14]
[332677584,1721425850067,-1918.01,0.00034246,14]
[332677585,1721425850076,-500.0,0.00034246,14]
[332677586,1721425850087,-500.0,0.00034246,14]
[332677587,1721425850096,-151.0,0.00034246,7]
[332677588,1721425850106,-236.615931,0.00034246,7]
[332677589,1721425850116,-1083.61,0.00034246,14]
[332677590,1721425850125,-151.0,0.00034246,7]
[332677591,1721425850135,-151.0,0.00034246,7]
[332677592,1721425850145,-643.12,0.00034246,14]
[332677593,1721425850154,-1783.35,0.00034246,14]
[332677594,1721425850164,-151.0,0.00034246,7]
[332677595,1721425850174,-151.0,0.00034246,7]
[332677596,1721425850183,-1583.94,0.00034246,14]
[332677597,1721425850193,-500.0,0.00034246,14]
[332677598,1721425850203,-428.36998994,0.00034246,2]
[332677599,1721425850217,-71.63001006,0.00034246,2]
[332677600,1721425850226,-151.0,0.00034246,7]
[332677601,1721425850235,-151.0,0.00034246,7]
[332677602,1721425850246,-1030.62,0.00034246,14]
[332677603,1721425850256,-657.36110194,0.00034246,14]
[332677604,1721425850268,-1380.45889806,0.00034246,14]
[332677605,1721425850278,-1141.33,0.00034246,14]
[332677606,1721425850289,-500.0,0.00034246,14]
[332677607,1721425850299,-151.0,0.00034246,7]
[332677608,1721425850310,-678.41,0.00034246,14]
[332677609,1721425850320,-151.0,0.00034246,7]
[332677610,1721425850330,-500.0,0.00034246,14]
[332677611,1721425850340,-151.0,0.00034246,7]
[332677612,1721425850350,-151.0,0.00034246,7]
[332677613,1721425850360,-318.68029779,0.00034246,14]
[332677614,1721425850371,-971.42,0.00034246,14]
[332677615,1721425850381,-999.12,0.00034246,14]
[332677616,1721425850394,-500.0,0.00034246,14]
[332677617,1721425850405,-500.0,0.00034246,14]
[332677618,1721425850415,-500.0,0.00034246,14]
[332677619,1721425850425,-691.76,0.00034246,14]
[332677620,1721425850436,-500.0,0.00034246,14]
[332677621,1721425850446,-583.35,0.00034246,14]
[332677622,1721425850457,-655.84,0.00034246,14]
[332677623,1721425850467,-500.0,0.00034246,14]
[332677624,1721425850478,-500.0,0.00034246,14]
[332677625,1721425850488,-500.0,0.00034246,14]
[332677626,1721425850500,-991.58,0.00034246,14]
[332677627,1721425850511,-500.0,0.00034246,14]
[332677628,1721425850522,-500.0,0.00034246,14]
[332677629,1721425850533,-500.0,0.00034246,14]
[332677630,1721425850543,-500.0,0.00034246,14]
[332677631,1721425850554,-151.0,0.00034246,7]
[332677632,1721425850565,-151.0,0.00034246,7]
[332677633,1721425850575,-500.0,0.00034246,14]
[332677634,1721425850585,-500.0,0.00034246,14]
[332677635,1721425850595,-500.0,0.00034246,14]
[332677636,1721425850605,-500.0,0.00034246,14]
[332677637,1721425850615,-500.0,0.00034246,14]
[332677638,1721425850624,-500.0,0.00034246,14]
[332677639,1721425850634,-500.0,0.00034246,14]
[332677640,1721425850652,-759.65,0.00034246,14]
[332677641,1721425850661,-500.0,0.00034246,14]
[332677642,1721425850671,-1093.89,0.00034246,14]
[332677643,1721425850681,-620.2,0.00034246,14]
[332677644,1721425850693,-500.0,0.00034246,14]
[332677645,1721425850703,-500.0,0.00034246,14]
[332677646,1721425850713,-500.0,0.00034246,14]
[332677647,1721425850723,-151.0,0.00034246,7]
[332677648,1721425850734,-1053.5,0.00034246,14]
[332677649,1721425850744,-151.0,0.00034246,7]
[332677650,1721425850753,-500.0,0.00034246,14]
[332677651,1721425850763,-661.81,0.00034246,14]
[332677652,1721425850773,-799.82,0.00034246,14]
[332677653,1721425850784,-500.0,0.00034246,14]
[332677654,1721425850793,-1303.38,0.00034246,14]
[332677655,1721425850803,-500.0,0.00034246,14]
[332677656,1721425850812,-151.0,0.00034246,7]
[332677657,1721425850822,-871.91,0.00034246,2]
[332677658,1721425850831,-151.0,0.00034246,7]
[332677659,1721425850841,-500.0,0.00034246,14]
[332677660,1721425850850,-500.0,0.00034246,14]
[332677661,1721425850859,-155.559119,0.00034246,7]
[332677662,1721425850868,-500.0,0.00034246,14]
[332677663,1721425850878,-1269.16,0.00034246,14]
[332677664,1721425850887,-500.0,0.00034246,14]
[332677665,1721425850896,-500.0,0.00034246,14]
[332677666,1721425850907,-892.7,0.00034246,14]
[332677667,1721425850917,-500.0,0.00034246,14]
[332677668,1721425850927,-151.0,0.00034246,7]
[332677669,1721425850937,-1444.78,0.00034246,14]
[332677670,1721425850948,-326.32693274,0.00034246,14]
[332677671,1721425850958,-151.0,0.00034246,7]
[332677672,1721425850969,-500.0,0.00034246,14]
[332677673,1721425850978,-723.08,0.00034246,14]
[332677674,1721425850988,-652.85,0.00034246,14]
[332677675,1721425851057,-932.66,0.00034246,14]
[332677676,1721425851068,-979.35,0.00034246,14]
[332677677,1721425851078,-500.0,0.00034246,14]
[332677678,1721425851088,-500.0,0.00034246,14]
[332677679,1721425851098,-500.0,0.00034246,14]
[332677680,1721425851109,-500.0,0.00034246,14]
[332677681,1721425851119,-837.253539,0.00034246,7]
[332677682,1721425851129,-837.253539,0.00034246,7]
[332677683,1721425851138,-788.43,0.00034246,14]
[332677684,1721425851147,-500.0,0.00034246,14]
[332677685,1721425851157,-622.81,0.00034246,14]
[332677686,1721425851167,-151.0,0.00034246,7]
[332677687,1721425851176,-151.0,0.00034246,7]
[332677688,1721425851186,-1002.76,0.00034246,14]
[332677689,1721425851195,-500.0,0.00034246,14]
[332677690,1721425851204,-837.253539,0.00034246,7]
[332677691,1721425851214,-1038.06,0.00034246,14]
[332677692,1721425851223,-837.253539,0.00034246,7]
[332677693,1721425851233,-633.23,0.00034246,14]
[332677694,1721425851244,-151.0,0.00034246,7]
[332677695,1721425851253,-151.0,0.00034246,7]
[332677696,1721425851262,-1354.79,0.00034246,14]
[332677697,1721425851271,-1715.85,0.00034246,14]
[332677698,1721425851281,-1080.6,0.00034246,14]
[332677699,1721425851290,-500.0,0.00034246,14]
[332677700,1721425851300,-500.0,0.00034246,14]
[332677701,1721425851310,-392.89557426,0.00034246,14]
[332677702,1721425851319,-500.0,0.00034246,14]
[332677703,1721425851329,-500.0,0.00034246,14]
[332677704,1721425851338,-500.0,0.00034246,14]
[332677705,1721425851348,-855.8,0.00034246,14]
[332677706,1721425851357,-500.0,0.00034246,14]
[332677707,1721425851366,-779.28,0.00034246,14]
[332677708,1721425851375,-500.0,0.00034246,14]
[332677709,1721425851384,-500.0,0.00034246,14]
[332677710,1721425851393,-500.0,0.00034246,14]
[332677711,1721425851403,-644.12,0.00034246,14]
[332677712,1721425851413,-882.78,0.00034246,14]
[332677713,1721425851422,-500.0,0.00034246,14]
[332677714,1721425851432,-500.0,0.00034246,14]
[332677715,1721425851442,-500.0,0.00034246,14]
[332677716,1721425851451,-563.65,0.00034246,14]
[332677717,1721425851460,-500.0,0.00034246,14]
[332677718,1721425851470,-500.0,0.00034246,14]
[332677719,1721425851479,-500.0,0.00034246,14]
[332677720,1721425851488,-1402.26,0.00034246,14]
[332677721,1721425851499,-500.0,0.00034246,14]
[332677722,1721425851508,-500.0,0.00034246,14]
[332677723,1721425851520,-1497.98,0.00034246,14]
[332677724,1721425851530,-637.92,0.00034246,14]
[332677725,1721425851539,-592.5,0.00034246,14]
[332677726,1721425851548,-500.0,0.00034246,14]
[332677727,1721425851558,-500.0,0.00034246,14]
[332677728,1721425851568,-620.62,0.00034246,14]
[332677729,1721425851577,-881.6,0.00034246,14]
[332677730,1721425851587,-500.0,0.00034246,14]
[332677731,1721425851596,-555.79,0.00034246,14]
[332677732,1721425851605,-500.0,0.00034246,14]
[332677733,1721425851617,-500.0,0.00034246,14]
[332677734,1721425851626,-1628.98,0.00034246,14]
[332677735,1721425851637,-500.0,0.00034246,14]
[332677736,1721425851648,-846.07,0.00034246,14]
[332677737,1721425851660,-500.0,0.00034246,14]
[332677738,1721425851669,-500.0,0.00034246,14]
[332677739,1721425851679,-920.19,0.00034246,14]
[332677740,1721425851688,-214.29491614,0.00034246,14]
[332677741,1721425851698,-1147.27,0.00034246,14]
[332677742,1721425851707,-747.03,0.00034246,14]
[332677743,1721425851716,-574.53,0.00034246,14]
[332677744,1721425851725,-1741.8,0.00034246,14]
[332677745,1721425851736,-1026.76,0.00034246,14]
[332677746,1721425851746,-500.0,0.00034246,14]
[332677747,1721425851755,-151.0,0.00034246,7]
[332677748,1721425851765,-151.0,0.00034246,7]
[332677749,1721425851775,-563.8,0.00034246,14]
[332677750,1721425851784,-500.0,0.00034246,14]
[332677751,1721425851794,-500.0,0.00034246,14]
[332677752,1721425851803,-2152.15,0.00034246,14]
[332677753,1721425851814,-1726.82,0.00034246,14]
[332677754,1721425851823,-500.0,0.00034246,14]
[332677755,1721425851833,-500.0,0.00034246,14]
[332677756,1721425851842,-1526.93,0.00034246,14]
[332677757,1721425851851,-717.6,0.00034246,14]
[332677758,1721425851861,-500.0,0.00034246,14]
[332677759,1721425851871,-1491.08,0.00034246,14]
[332677760,1721425851880,-945.49,0.00034246,14]
[332677761,1721425851890,-705.58,0.00034246,14]
[332677762,1721425851899,-500.0,0.00034246,14]
[332677763,1721425851908,-151.0,0.00034246,7]
[332677764,1721425851918,-1396.93,0.00034246,14]
[332677765,1721425851927,-588.47,0.00034246,14]
[332677766,1721425851936,-1019.1,0.00034246,14]
[332677767,1721425851946,-500.0,0.00034246,14]
[332677768,1721425851955,-506.06677321,0.00034246,14]
[332677769,1721425851964,-500.0,0.00034246,14]
[332677770,1721425851974,-500.0,0.00034246,14]
[332677771,1721425851983,-500.0,0.00034246,14]
[332677772,1721425851993,-500.0,0.00034246,14]
[332677773,1721425852002,-839.82,0.00034246,14]
[332677774,1721425852011,-151.0,0.00034246,7]
[332677775,1721425852020,-151.734537,0.00034246,7]
[332677776,1721425852030,-500.0,0.00034246,14]
[332677777,1721425852039,-826.82,0.00034246,14]
[332677778,1721425852048,-500.0,0.00034246,14]
[332677779,1721425852059,-500.0,0.00034246,14]
[332677780,1721425852069,-500.0,0.00034246,14]
[332677781,1721425852079,-500.0,0.00034246,14]
[332677782,1721425852088,-151.0,0.00034246,7]
[332677783,1721425852097,-500.0,0.00034246,14]
[332677784,1721425852107,-153.936336,0.00034246,7]
[332677785,1721425852116,-500.0,0.00034246,14]
[332677786,1721425852125,-500.0,0.00034246,14]
[332677787,1721425852134,-500.0,0.00034246,14]
[332677788,1721425852145,-1235.09,0.00034246,14]
[332677789,1721425852155,-720.37,0.00034246,14]
[332677790,1721425852165,-151.0,0.00034246,7]
[332677791,1721425852174,-151.0,0.00034246,7]
[332677792,1721425852183,-500.0,0.00034246,14]
[332677793,1721425852193,-500.0,0.00034246,14]
[332677794,1721425852203,-500.0,0.00034246,14]
[332677795,1721425852212,-1879.15,0.00034246,14]
[332677796,1721425852222,-500.0,0.00034246,14]
[332677797,1721425852231,-1615.49,0.00034246,14]
[332677798,1721425852240,-500.0,0.00034246,14]
[332677799,1721425852250,-500.0,0.00034246,14]
[332677800,1721425852259,-500.0,0.00034246,14]
[332677801,1721425852268,-566.38,0.00034246,14]
[332677802,1721425852278,-500.0,0.00034246,14]
[332677803,1721425852287,-568.75,0.00034246,14]
[332677804,1721425852296,-1010.64,0.00034246,14]
[332677805,1721425852305,-500.0,0.00034246,14]
[332677806,1721425852315,-856.36,0.00034246,14]
[332677807,1721425852324,-783.76,0.00034246,14]
[332677808,1721425852334,-500.0,0.00034246,14]
[332677809,1721425852343,-268.78,0.00034246,14]
[332677810,1721425852352,-500.0,0.00034246,14]
[332677811,1721425852362,-151.0,0.00034246,7]
[332677812,1721425852372,-151.0,0.00034246,7]
[332677813,1721425852382,-748.12,0.00034246,14]
[332677814,1721425852391,-500.0,0.00034246,14]
[332677815,1721425852400,-500.0,0.00034246,14]
[332677816,1721425852409,-1187.13,0.00034246,14]
[332677817,1721425852418,-342.79095665,0.00034246,7]
[332677818,1721425852797,-332.83904335,0.00034246,7]
[332677819,1721425852809,-151.0,0.00034246,7]
[332677820,1721425852820,-188.425753,0.00034246,7]
[332677821,1721425852829,-500.0,0.00034246,14]
[332677822,1721425852840,-36.81821845,0.00034246,14]
[332677823,1721425852875,-463.18178155,0.00034246,14]
[332677824,1721425852885,-288.15500812,0.00034246,14]
[332677825,1721425852896,-187.12088741,0.00034246,14]
[332677826,1721425852906,-500.0,0.00034246,14]
[332677827,1721425852915,-7.50911259,0.00034246,14]
[332677828,1721425852928,-547.78710547,0.00034246,14]
[332677829,1721425852941,-939.60378194,0.00034246,14]
[332677830,1721425852952,-7.10621708,0.00034246,14]
[332677831,1721425852971,-492.89378292,0.00034246,14]
[332677832,1721425852981,-500.0,0.00034246,14]
[332677833,1721425852990,-997.44,0.00034246,14]
[332677834,1721425853001,-500.0,0.00034246,14]
[332677835,1721425853010,-313.69191018,0.00034246,14]
[332677836,1721425853019,-991.5,0.00034246,14]
[332677837,1721425853028,-500.0,0.00034246,14]
[332677838,1721425853038,-804.54,0.00034246,14]
[332677839,1721425853047,-500.0,0.00034246,14]
[332677840,1721425853057,-500.0,0.00034246,14]
[332677841,1721425853067,-500.0,0.00034246,14]
[332677842,1721425853076,-151.0,0.00034246,7]
[332677843,1721425853085,-151.0,0.00034246,7]
[332677844,1721425853095,-117.9343069,0.00034246,14]
[332677845,1721425853110,-532.60535454,0.00034246,14]
[332677846,1721425853133,-289.05033856,0.00034246,14]
[332677847,1721425853143,-359.09892105,0.00034246,14]
[332677848,1721425853155,-1964.57107895,0.00034246,14]
[332677849,1721425853164,-500.0,0.00034246,14]
[332677850,1721425853174,-151.0,0.00034246,7]
[332677851,1721425853184,-191.781856,0.00034246,7]
[332677852,1721425853194,-196.87530316,0.00034246,14]
[332677853,1721425853213,-550.41469684,0.00034246,14]
[332677854,1721425853223,-500.0,0.00034246,14]
[332677855,1721425853232,-1396.96,0.00034246,14]
[332677856,1721425853241,-592.91,0.00034246,14]
[332677857,1721425853251,-500.0,0.00034246,14]
[332677858,1721425853260,-500.0,0.00034246,14]
[332677859,1721425853270,-1711.82,0.00034246,14]
[332677860,1721425853280,-500.0,0.00034246,14]
[332677861,1721425853289,-2987.96,0.00034246,14]
[332677862,1721425853298,-500.0,0.00034246,14]
[332677863,1721425853308,-500.0,0.00034246,14]
[332677864,1721425853318,-2797.2,0.00034246,14]
[332677865,1721425853328,-500.0,0.00034246,14]
[332677866,1721425853338,-862.78,0.00034246,14]
[332677867,1721425853347,-1284.01,0.00034246,14]
[332677868,1721425853356,-500.0,0.00034246,14]
[332677869,1721425853366,-2212.35,0.00034246,14]
[332677870,1721425853375,-500.0,0.00034246,14]
[332677871,1721425853384,-500.0,0.00034246,14]
[332677872,1721425853394,-394.976,0.00034246,14]
[332677873,1721425853403,-374.03523311,0.00034246,14]
[332677874,1721425853413,-601.67,0.00034246,14]
[332677875,1721425853422,-1040.66,0.00034246,14]
[332677876,1721425853432,-524.3,0.00034246,14]
[332677877,1721425853441,-576.11,0.00034246,14]
[332677878,1721425853451,-151.0,0.00034246,7]
[332677879,1721425853461,-151.0,0.00034246,7]
[332677880,1721425853472,-2610.17,0.00034246,14]
[332677881,1721425853484,-1497.6,0.00034246,14]
[332677882,1721425853496,-151.0,0.00034246,7]
[332677883,1721425853506,-151.0,0.00034246,7]
[332677884,1721425853516,-500.0,0.00034246,14]
[332677885,1721425853526,-500.0,0.00034246,14]
[332677886,1721425853536,-1057.5,0.00034246,14]
[332677887,1721425853546,-159.290209,0.00034246,7]
[332677888,1721425853555,-500.0,0.00034246,14]
[332677889,1721425853566,-151.0,0.00034246,7]
[332677890,1721425853575,-151.0,0.00034246,7]
[332677891,1721425853584,-702.36,0.00034246,14]
[332677892,1721425853595,-814.92,0.00034246,14]
[332677893,1721425853604,-1666.53,0.00034246,14]
[332677894,1721425853613,-500.0,0.00034246,14]
[332677895,1721425853623,-500.0,0.00034246,14]
[332677896,1721425853633,-500.0,0.00034246,14]
[332677897,1721425853643,-638.7,0.00034246,14]
[332677898,1721425853653,-2371.33,0.00034246,14]
[332677899,1721425853664,-500.0,0.00034246,14]
[332677900,1721425853674,-500.0,0.00034246,14]
[332677901,1721425853683,-500.0,0.00034246,14]
[332677902,1721425853694,-786.54,0.00034246,14]
[332677903,1721425853703,-151.0,0.00034246,7]
[332677904,1721425853712,-151.0,0.00034246,7]
[332677905,1721425853721,-799.58,0.00034246,14]
[332677906,1721425853732,-500.0,0.00034246,14]
[332677907,1721425853740,-789.65,0.00034246,14]
[332677908,1721425853750,-500.0,0.00034246,14]
[332677909,1721425853759,-917.72,0.00034246,14]
[332677910,1721425853769,-4605.25,0.00034246,14]
[332677911,1721425853779,-500.0,0.00034246,14]
[332677912,1721425853788,-770.44,0.00034246,14]
[332677913,1721425853797,-1216.47,0.00034246,14]
[332677914,1721425853806,-500.0,0.00034246,14]
[332677915,1721425853815,-500.0,0.00034246,14]
[332677916,1721425853825,-1346.43,0.00034246,14]
[332677917,1721425853834,-151.0,0.00034246,7]
[332677918,1721425853843,-1054.43,0.00034246,14]
[332677919,1721425853854,-151.0,0.00034246,7]
[332677920,1721425853864,-10698.06,0.00034246,14]
[332677921,1721425853874,-500.0,0.00034246,14]
[332677922,1721425853883,-392.304857,0.00034246,7]
[332677923,1721425853892,-392.304857,0.00034246,7]
[332677924,1721425853902,-151.0,0.00034246,7]
[332677925,1721425853911,-297.160831,0.00034246,7]
[332677926,1721425853921,-523.86,0.00034246,14]
[332677927,1721425853930,-500.0,0.00034246,14]
[332677928,1721425853939,-500.0,0.00034246,14]
[332677929,1721425853948,-392.304857,0.00034246,7]
[332677930,1721425853958,-392.304857,0.00034246,7]
[332677931,1721425853967,-1602.44,0.00034246,14]
[332677932,1721425853976,-2568.86,0.00034246,14]
[332677933,1721425853986,-500.0,0.00034246,14]
[332677934,1721425853996,-572.16,0.00034246,14]
[332677935,1721425854005,-869.13,0.00034246,14]
[332677936,1721425854014,-500.0,0.00034246,14]
[332677937,1721425854024,-2968.8,0.00034246,14]
[332677938,1721425854033,-500.0,0.00034246,14]
[332677939,1721425854042,-525.87,0.00034246,14]
[332677940,1721425854052,-151.0,0.00034246,7]
[332677941,1721425854061,-151.0,0.00034246,7]
[332677942,1721425854071,-1005.19,0.00034246,14]
[332677943,1721425854080,-500.0,0.00034246,14]
[332677944,1721425854090,-151.0,0.00034246,7]
[332677945,1721425854100,-2637.76,0.00034246,14]
[332677946,1721425854109,-151.0,0.00034246,7]
[332677947,1721425854119,-500.0,0.00034246,14]
[332677948,1721425854128,-572.62,0.00034246,14]
[332677949,1721425854146,-636.79,0.00034246,14]
[332677950,1721425854157,-2523.8,0.00034246,14]
[332677951,1721425854166,-500.0,0.00034246,14]
[332677952,1721425854175,-1304.17,0.00034246,14]
[332677953,1721425854186,-500.0,0.00034246,14]
[332677954,1721425854195,-151.0,0.00034246,7]
[332677955,1721425854204,-151.0,0.00034246,7]
[332677956,1721425854214,-1162.71,0.00034246,14]
[332677957,1721425854223,-151.0,0.00034246,7]
[332677958,1721425854233,-151.0,0.00034246,7]
[332677959,1721425854244,-2919.12,0.00034246,14]
[332677960,1721425854254,-4573.88,0.00034246,14]
[332677961,1721425854263,-1089.72,0.00034246,14]
[332677962,1721425854272,-537.72,0.00034246,14]
[332677963,1721425854282,-7266.93,0.00034246,14]
[332677964,1721425854291,-500.0,0.00034246,14]
[332677965,1721425854301,-168.714165,0.00034246,7]
[332677966,1721425854310,-1036.6,0.00034246,14]
[332677967,1721425854319,-500.0,0.00034246,14]
[332677968,1721425854329,-640.59,0.00034246,14]
[332677969,1721425854338,-12972.72,0.00034246,14]
[332677970,1721425854348,-1689.68,0.00034246,14]
[332677971,1721425854357,-964.11,0.00034246,14]
[332677972,1721425854366,-194.07172587,0.00034246,14]
[332677973,1721425854376,-1256.88,0.00034246,14]
[332677974,1721425854385,-624.31,0.00034246,14]
[332677975,1721425854395,-755.82,0.00034246,14]
[332677976,1721425854405,-157.826707,0.00034246,7]
[332677977,1721425854414,-157.826707,0.00034246,7]
[332677978,1721425854423,-1674.46,0.00034246,14]
[332677979,1721425854433,-1687.38,0.00034246,14]